bitfinex/quotes_BTCUSD_20250910
["timestamp","ask_amount","ask_price","bid_price","bid_amount"]
[1757467933010,2.62843509,111180.0,111170.0,62.71162356]
[1757467933271,2.62843509,111180.0,111170.0,62.70842356]
[1757467933684,2.47743509,111180.0,111170.0,62.70842356]
[1757467933923,2.8098652,111180.0,111170.0,62.70842356]
[1757467934446,2.83455352,111180.0,111170.0,62.70842356]
[1757467934643,2.86680745,111180.0,111170.0,62.70842356]
[1757467935487,2.83451352,111180.0,111170.0,62.70842356]
[1757467935697,2.83155352,111180.0,111170.0,62.70842356]
[1757467935900,2.77933609,111180.0,111170.0,62.70842356]
[1757467936116,2.69474341,111180.0,111170.0,62.70842356]
[1757467936558,2.54382341,111180.0,111170.0,62.70842356]
[1757467936760,2.69478341,111180.0,111170.0,62.70842356]
[1757467937026,2.68558255,111180.0,111170.0,62.70842356]
[1757467937228,2.82535266,111180.0,111170.0,62.70842356]
[1757467940146,2.82239266,111180.0,111170.0,62.70842356]
[1757467940926,2.82535266,111180.0,111170.0,62.70842356]
[1757467941292,2.94095266,111180.0,111170.0,62.70842356]
[1757467941413,2.97320659,111180.0,111170.0,62.70842356]
[1757467942081,6.73508583,111180.0,111170.0,62.06245013]
[1757467942300,6.74396498,111180.0,111170.0,62.06245013]
[1757467942629,6.72985739,111180.0,111170.0,62.06197517]
[1757467942822,6.72985739,111180.0,111170.0,61.39390767]
[1757467943030,6.72985739,111180.0,111170.0,61.39343304]
[1757467943265,6.72985739,111180.0,111170.0,61.39296116]
[1757467943447,6.72981739,111180.0,111170.0,61.39296116]
[1757467943693,6.72981739,111180.0,111170.0,61.39248902]
[1757467943893,6.72981739,111180.0,111170.0,61.39201507]
[1757467944101,6.72981739,111180.0,111170.0,61.39153782]
[1757467944521,6.72981739,111180.0,111170.0,61.39105859]
[1757467944714,6.70438422,111180.0,111170.0,61.39057935]
[1757467945171,6.70438422,111180.0,111170.0,61.39010857]
[1757467945377,6.70438422,111180.0,111170.0,61.3896325]
[1757467945591,6.71849322,111180.0,111170.0,61.3896325]
[1757467945794,6.27319322,111180.0,111170.0,61.38916259]
[1757467945995,6.27315322,111180.0,111170.0,61.38869269]
[1757467946202,6.27315322,111180.0,111170.0,61.38821959]
[1757467946617,6.27315322,111180.0,111170.0,61.38774418]
[1757467946820,6.27315322,111180.0,111170.0,61.38726803]
[1757467947241,6.12227322,111180.0,111170.0,61.38679086]
[1757467947450,6.15755322,111180.0,111170.0,61.38631545]
[1757467947831,6.15755322,111180.0,111170.0,61.38584655]
[1757467948270,6.15755322,111180.0,111170.0,61.38537657]
[1757467948450,6.15755322,111180.0,111170.0,61.38490631]
[1757467948451,2.3500249,111180.0,111170.0,61.38490631]
[1757467948690,2.38835322,111180.0,111170.0,61.38490631]
[1757467948916,2.43683863,111180.0,111170.0,61.38443154]
[1757467949180,2.43683863,111180.0,111170.0,61.38396078]
[1757467949384,2.43683863,111180.0,111170.0,61.38348827]
[1757467949600,2.1220002,111180.0,111170.0,61.38668827]
[1757467949807,2.26970903,111180.0,111170.0,61.38621166]
[1757467950008,2.40651914,111180.0,111170.0,61.38574226]
[1757467950191,2.25567914,111180.0,111170.0,61.38574226]
[1757467950401,2.40651914,111180.0,111170.0,61.38527198]
[1757467950600,2.40651914,111180.0,111170.0,61.38479772]
[1757467950808,2.40651914,111180.0,111170.0,61.38432516]
[1757467951212,2.40651914,111180.0,111170.0,61.38385248]
[1757467951419,2.40651914,111180.0,111170.0,61.38337906]
[1757467951826,2.40651914,111180.0,111170.0,61.38290457]
[1757467952121,2.40651914,111180.0,111170.0,61.38243085]
[1757467952379,2.43741231,111180.0,111170.0,61.37875641]
[1757467952581,2.43741231,111180.0,111170.0,61.37827741]
[1757467952785,7.53589772,111180.0,111170.0,61.37827741]
[1757467952995,7.53589772,111180.0,111170.0,61.37779563]
[1757467953205,7.57923739,111180.0,111170.0,60.72969358]
[1757467953668,7.57923739,111180.0,111170.0,60.72922]
[1757467953890,7.77923739,111180.0,111170.0,60.06925719]
[1757467954061,7.86151231,111180.0,111170.0,60.06925719]
[1757467954273,7.81151231,111180.0,111170.0,60.06877548]
[1757467954476,7.79334709,111180.0,111170.0,59.45983106]
[1757467954639,7.84134709,111180.0,111170.0,59.45935587]
[1757467954845,7.84434709,111180.0,111170.0,59.45988387]
[1757467955265,7.84134709,111180.0,111170.0,59.45841219]
[1757467955479,7.83634709,111180.0,111170.0,59.45694079]
[1757467955681,7.83634709,111180.0,111170.0,58.83745719]
[1757467955890,7.93121709,111180.0,111170.0,58.80208217]
[1757467956117,7.93121709,111180.0,111170.0,58.76925109]
[1757467956328,7.52478676,111180.0,111170.0,58.16283238]
[1757467956521,5.7433956,111180.0,111170.0,58.140512]
[1757467956720,5.60392801,111180.0,111170.0,58.14004311]
[1757467956932,6.27249309,111180.0,111170.0,58.13957464]
[1757467957365,7.55431399,111180.0,111170.0,58.13957464]
[1757467957533,7.58658891,111180.0,111170.0,58.13910268]
[1757467957738,7.58658891,111180.0,111170.0,58.13862484]
[1757467957932,8.08658891,111180.0,111170.0,58.13862484]
[1757467958305,8.08658891,111180.0,111170.0,58.13815523]
[1757467958306,8.80148891,111180.0,111170.0,58.13815523]
[1757467958509,8.79748891,111180.0,111170.0,58.13668544]
[1757467958725,8.77542208,111180.0,111170.0,58.13620723]
[1757467958937,8.94502208,111180.0,111170.0,58.13672959]
[1757467959356,8.94502208,111180.0,111170.0,58.13626031]
[1757467959561,8.82942208,111180.0,111170.0,58.13626031]
[1757467959803,8.82942208,111180.0,111170.0,58.13579092]
[1757467959987,8.82542208,111180.0,111170.0,58.13532205]
[1757467960348,8.82542208,111180.0,111170.0,58.13484406]
[1757467960570,8.83142208,111180.0,111170.0,58.13436574]
[1757467960772,8.63547619,111180.0,111170.0,58.13436574]
[1757467960972,8.81280267,111180.0,111170.0,58.13388703]
[1757467961340,8.81280267,111180.0,111170.0,58.13341847]
[1757467961541,8.81280267,111180.0,111170.0,58.13294942]
[1757467961888,8.81280267,111180.0,111170.0,58.13247995]
[1757467962233,8.81280267,111180.0,111170.0,58.13200029]
[1757467962434,8.81280267,111180.0,111170.0,58.13153031]
[1757467962698,8.79656174,111180.0,111170.0,57.46990497]
[1757467962906,8.91802174,111180.0,111170.0,57.42671912]
[1757467963111,8.91802174,111180.0,111170.0,56.72479967]
[1757467963312,8.91802174,111180.0,111170.0,56.6927728]
[1757467963485,8.91165297,111180.0,111170.0,56.68327894]
[1757467963689,8.91165297,111180.0,111170.0,56.04978014]
[1757467963897,8.86316756,111180.0,111170.0,56.04029709]
[1757467964093,8.86786846,111180.0,111170.0,56.00826526]
[1757467964355,8.92485387,111180.0,111170.0,55.97524976]
[1757467964533,8.87636846,111180.0,111170.0,55.37371098]
[1757467964734,8.87636846,111180.0,111170.0,55.33314122]
[1757467964953,8.87636846,111180.0,111170.0,55.33266941]
[1757467965181,8.87636846,111180.0,111170.0,55.3231806]
[1757467965390,3.82636846,111180.0,111170.0,54.65371664]
[1757467965601,8.87636846,111180.0,111170.0,54.61314688]
[1757467965811,8.87636846,111180.0,111170.0,54.61268046]
[1757467965990,8.92485387,111180.0,111170.0,53.99585398]
[1757467966218,8.36236846,111180.0,111170.0,53.99585398]
[1757467966433,7.47843567,111180.0,111170.0,53.99841301]
[1757467966651,4.80251992,111180.0,111170.0,53.99794636]
[1757467967055,4.3276465,111180.0,111170.0,53.99747593]
[1757467967334,4.30251992,111180.0,111170.0,53.99700422]
[1757467967563,7.9450465,111180.0,111170.0,53.99652928]
[1757467967770,7.9450465,111180.0,111170.0,54.11702578]
[1757467967771,3.30143992,111180.0,111170.0,54.11702578]
[1757467967993,2.69081037,111180.0,111170.0,54.11702578]
[1757467968142,2.69081037,111180.0,111170.0,54.11655773]
[1757467968143,3.03081037,111180.0,111170.0,54.11655773]
[1757467968341,2.71593695,111180.0,111170.0,54.11608684]
[1757467968848,3.05593695,111180.0,111170.0,54.11561541]
[1757467969068,3.05593695,111180.0,111170.0,54.11514409]
[1757467969294,3.05593695,111180.0,111170.0,54.11467054]
[1757467969707,2.56505695,111180.0,111170.0,54.11419426]
[1757467969867,2.56252684,111180.0,111170.0,54.11372081]
[1757467970063,3.03933695,111180.0,111170.0,54.11372081]
[1757467970272,3.03933695,111180.0,111170.0,54.11324745]
[1757467970687,3.03933695,111180.0,111170.0,53.9887732]
[1757467970904,3.03933695,111180.0,111170.0,53.99132652]
[1757467971287,3.03933695,111180.0,111170.0,53.99084827]
[1757467971542,3.03933695,111180.0,111170.0,53.99036897]
[1757467971891,3.03933695,111180.0,111170.0,53.98988868]
[1757467972095,3.21004811,111180.0,111170.0,53.98940686]
[1757467972294,3.1959369,111180.0,111170.0,53.98940686]
[1757467972519,3.1959369,111180.0,111170.0,53.98892469]
[1757467972717,3.1959369,111180.0,111170.0,53.98844203]
[1757467972922,3.22387007,111180.0,111170.0,53.98795916]
[1757467973314,3.22387007,111180.0,111170.0,53.98747716]
[1757467973498,3.22387007,111180.0,111170.0,53.98699294]
[1757467973705,3.23797928,111180.0,111170.0,53.98699294]
[1757467973926,3.23797928,111180.0,111170.0,53.98650602]
[1757467974138,3.23797928,111180.0,111170.0,53.98601436]
[1757467974504,3.24820889,111180.0,111170.0,53.98552238]
[1757467974712,3.24820889,111180.0,111170.0,53.9850282]
[1757467975179,3.24820889,111180.0,111170.0,53.98150192]
[1757467975386,3.24820889,111180.0,111170.0,53.98101526]
[1757467975738,3.24820889,111180.0,111170.0,53.98052815]
[1757467975944,3.24820889,111180.0,111170.0,53.98003051]
[1757467976401,3.48184379,111180.0,111170.0,53.97954083]
[1757467976597,3.48486379,111180.0,111170.0,53.97954083]
[1757467976837,3.48184379,111180.0,111170.0,53.97905021]
[1757467977051,3.0709213,111180.0,111170.0,53.97905021]
[1757467977237,8.08869555,111180.0,111170.0,53.97855739]
[1757467977379,8.18356555,111180.0,111170.0,53.97855739]
[1757467977606,8.18356555,111180.0,111170.0,53.97806168]
[1757467977814,8.18356555,111180.0,111170.0,53.9775654]
[1757467978018,8.18356555,111180.0,111170.0,53.97706635]
[1757467978495,8.18356555,111180.0,111170.0,53.97656655]
[1757467978627,8.18356555,111180.0,111170.0,53.97606542]
[1757467979035,8.18356555,111180.0,111170.0,53.97556164]
[1757467979247,8.18356555,111180.0,111170.0,53.97505964]
[1757467979665,8.18356555,111180.0,111170.0,53.97455921]
[1757467979960,8.18356555,111180.0,111170.0,53.9740569]
[1757467980188,8.18356555,111180.0,111170.0,53.97356101]
[1757467980544,8.18356555,111180.0,111170.0,53.97305842]
[1757467980747,8.02966555,111180.0,111170.0,53.97559127]
[1757467980957,2.95572831,111180.0,111170.0,54.09656127]
[1757467981165,2.9740758,111180.0,111170.0,54.09605996]
[1757467981369,2.9740758,111180.0,111170.0,54.09555415]
[1757467981574,2.99920238,111180.0,111170.0,54.09555415]
[1757467981797,2.99920238,111180.0,111170.0,54.09504945]
[1757467982065,2.99920238,111180.0,111170.0,54.09454594]
[1757467982448,2.99920238,111180.0,111170.0,54.09403984]
[1757467982719,2.99920238,111180.0,111170.0,54.09353301]
[1757467982924,3.03146767,111180.0,111170.0,54.09302414]
[1757467983237,3.03146767,111180.0,111170.0,54.09251364]
[1757467983421,8.08146767,111180.0,111170.0,54.09251364]
[1757467983655,8.08996767,111180.0,111170.0,54.09200208]
[1757467983858,8.08996767,111180.0,111170.0,54.09149238]
[1757467984378,8.08996767,111180.0,111170.0,54.09097827]
[1757467984591,2.88912767,111180.0,111170.0,54.09046388]
[1757467984772,3.03996767,111180.0,111170.0,54.08995131]
[1757467985185,2.63455163,111180.0,111170.0,54.08943999]
[1757467985395,2.81444009,111180.0,111170.0,54.08892814]
[1757467985607,2.84149413,111180.0,111170.0,54.08841524]
[1757467985804,2.69065413,111180.0,111170.0,54.08841524]
[1757467985982,2.04822771,111180.0,111170.0,54.08790131]
[1757467986190,2.02099321,111180.0,111170.0,54.08738969]
[1757467986555,2.16733852,111180.0,111170.0,54.08687829]
[1757467986740,2.05052107,111180.0,111170.0,54.08687829]
[1757467986954,2.50733852,111180.0,111170.0,54.0863614]
[1757467987134,2.50733852,111180.0,111170.0,54.08584195]
[1757467987335,2.50133852,111180.0,111170.0,54.08584195]
[1757467987546,2.54088295,111180.0,111170.0,54.08532151]
[1757467987758,2.54188295,111180.0,111170.0,54.08379646]
[1757467988083,2.54188295,111180.0,111170.0,54.08327342]
[1757467988263,2.53988295,111180.0,111170.0,54.08427342]
[1757467988475,2.53988295,111180.0,111170.0,54.08374547]
[1757467988686,2.53988295,111180.0,111170.0,54.08321692]
[1757467988894,2.53688295,111180.0,111170.0,54.08168797]
[1757467989106,2.53688295,111180.0,111170.0,54.08268797]
[1757467989305,2.53688295,111180.0,111170.0,54.08216149]
[1757467989540,2.53688295,111180.0,111170.0,54.08062989]
[1757467989964,2.53688295,111180.0,111170.0,54.08010123]
[1757467989965,2.2692255,111180.0,111170.0,54.08010123]
[1757467990211,2.4200655,111180.0,111170.0,54.08010123]
[1757467990423,2.4210655,111180.0,111170.0,54.07957527]
[1757467990649,2.4210655,111180.0,111170.0,54.07904762]
[1757467991060,2.4210655,111180.0,111170.0,54.07851876]
[1757467991298,2.4210655,111180.0,111170.0,54.07898622]
[1757467991558,2.2210655,111180.0,111170.0,54.07898622]
[1757467991781,2.38273802,111180.0,111170.0,54.07845083]
[1757467991983,2.38273802,111180.0,111170.0,54.07792324]
[1757467992232,2.38273802,111180.0,111170.0,54.0773846]
[1757467992460,2.38273802,111180.0,111170.0,54.07685502]
[1757467992926,2.38173802,111180.0,111170.0,54.07632538]
[1757467993344,2.38173802,111180.0,111170.0,54.07578308]
[1757467993587,2.38173802,111180.0,111170.0,54.07524009]
[1757467993798,2.38373802,111180.0,111170.0,54.07470704]
[1757467993998,2.50055547,111180.0,111170.0,54.07470704]
[1757467994215,2.50055547,111180.0,111170.0,54.07417432]
[1757467994420,2.50055547,111180.0,111170.0,54.07363903]
[1757467994898,2.50055547,111180.0,111170.0,54.07310317]
[1757467995121,2.50055547,111180.0,111170.0,54.0725561]
[1757467995355,2.52568205,111180.0,111170.0,54.07201975]
[1757467995569,2.55252954,111180.0,111170.0,53.95050457]
[1757467996022,2.15010312,111180.0,111170.0,54.07428645]
[1757467996242,2.34419359,111180.0,111170.0,54.07374141]
[1757467996471,2.34419359,111180.0,111170.0,54.07320162]
[1757467996883,2.46101104,111180.0,111170.0,54.07266127]
[1757467997095,2.05353281,111180.0,111170.0,54.07212124]
[1757467997513,2.05353281,111180.0,111170.0,54.07157666]
[1757467997679,2.05353281,111180.0,111170.0,54.07103049]
[1757467997940,2.05353281,111180.0,111170.0,54.07048421]
[1757467998477,2.05353281,111180.0,111170.0,54.06993579]
[1757467998684,2.05353281,111180.0,111170.0,54.06938701]
[1757467998830,1.90269281,111180.0,111170.0,54.06883]
[1757467999046,2.05349281,111180.0,111170.0,54.06828091]
[1757467999702,2.05349281,111180.0,111170.0,54.06773212]
[1757468000123,2.05349281,111180.0,111170.0,54.06718341]
[1757468000360,2.05349281,111180.0,111170.0,53.94230272]
[1757468000599,2.1177147,111180.0,111170.0,53.93871082]
[1757468000819,2.19564787,111180.0,111170.0,53.93871082]
[1757468001029,2.19564787,111180.0,111170.0,53.93815592]
[1757468001273,2.19564787,111180.0,111170.0,53.93760214]
[1757468001470,2.19564787,111180.0,111170.0,53.93704124]
[1757468001790,2.19564787,111180.0,111170.0,53.93647762]
[1757468001992,4.33764787,111180.0,111170.0,53.93647762]
[1757468002200,4.36991316,111180.0,111170.0,53.93591093]
[1757468002412,4.36991316,111180.0,111170.0,53.93535561]
[1757468002621,4.36991316,111180.0,111170.0,53.93479224]
[1757468003061,4.19117999,111180.0,111170.0,53.93423064]
[1757468003237,4.19117999,111180.0,111170.0,53.93366282]
[1757468003447,4.34197999,111180.0,111170.0,53.93366282]
[1757468003621,4.34197999,111180.0,111170.0,53.93309437]
[1757468003851,2.19680999,111180.0,111170.0,53.93252542]
[1757468004057,1.77837976,111180.0,111170.0,53.93558542]
[1757468004266,1.62837976,111180.0,111170.0,54.05933767]
[1757468004461,1.90405318,111180.0,111170.0,54.05877248]
[1757468004662,1.92917976,111180.0,111170.0,54.05877248]
[1757468004863,1.92917976,111180.0,111170.0,54.05820617]
[1757468005099,1.75325318,111180.0,111170.0,54.05764207]
[1757468005316,0.71030422,111180.0,111170.0,54.05764207]
[1757468005548,0.94428677,111180.0,111170.0,54.06594207]
[1757468005753,0.76643273,111180.0,111170.0,54.06594207]
[1757468005966,0.76172849,111180.0,111170.0,54.06594207]
[1757468006172,0.91252849,111180.0,111170.0,54.06594207]
[1757468006385,1.25252849,111180.0,111170.0,54.06594207]
[1757468007733,1.64255343,111180.0,111170.0,54.05764207]
[1757468009787,1.66768001,111180.0,111170.0,53.93332207]
[1757468010008,1.98304591,111180.0,111170.0,53.93332207]
[1757468011222,2.02261865,111180.0,111170.0,53.93332207]
[1757468011798,2.0496682,111180.0,111170.0,53.93332207]
[1757468012817,1.83953172,111180.0,111170.0,53.93332207]
[1757468013035,1.7748324,111180.0,111170.0,54.05764207]
[1757468013301,1.98496888,111180.0,111170.0,54.05764207]
[1757468015103,2.00433422,111180.0,111170.0,54.05764207]
[1757468017565,2.0294608,111180.0,111170.0,53.93332207]
[1757468020134,1.8786608,111180.0,111170.0,53.93332207]
[1757468020335,1.8786608,111180.0,111170.0,54.05764207]
[1757468020537,2.069697,111180.0,111170.0,54.05764207]
[1757468023485,2.069697,111180.0,111170.0,53.93332207]
[1757468023698,2.069697,111180.0,111170.0,53.93026207]
[1757468023911,2.072867,111180.0,111170.0,53.93026207]
[1757468024334,2.069697,111180.0,111170.0,53.93026207]
[1757468024573,2.09654449,111180.0,111170.0,53.93026207]
[1757468026139,2.09971449,111180.0,111170.0,53.93026207]
[1757468026467,2.06949494,111180.0,111170.0,53.93026207]
[1757468026680,2.04264745,111180.0,111170.0,53.93323207]
[1757468026894,1.88702011,111180.0,111170.0,53.93323207]
[1757468027277,1.86765477,111180.0,111170.0,53.93323207]
[1757468028119,1.86765477,111180.0,111170.0,53.93026207]
[1757468028303,1.84080728,111180.0,111170.0,53.93026207]
[1757468028543,1.86765477,111180.0,111170.0,53.93026207]
[1757468028775,1.87082477,111180.0,111170.0,53.93026207]
[1757468028973,1.89019849,111180.0,111170.0,53.93026207]
[1757468029383,1.89019849,111180.0,111170.0,53.93497857]
[1757468029595,2.16084661,111180.0,111170.0,53.93497857]
[1757468029819,2.28513661,111180.0,111170.0,53.93497857]
[1757468030031,2.27102907,111180.0,111170.0,53.93497857]
[1757468031933,2.27952907,111180.0,111170.0,53.93497857]
[1757468032205,2.32952907,111180.0,111170.0,53.93497857]
[1757468033182,2.15206907,111180.0,111170.0,53.93497857]
[1757468033401,2.20206907,111180.0,111170.0,53.93497857]
[1757468033619,2.20523907,111180.0,111170.0,53.93497857]
[1757468033988,2.15523907,111180.0,111170.0,53.93497857]
[1757468034194,2.23229282,111180.0,111170.0,53.93497857]
[1757468034392,2.08574586,111180.0,111170.0,53.93497857]
[1757468034659,2.09985427,111180.0,111170.0,53.93497857]
[1757468035344,2.23671727,111180.0,111170.0,53.93497857]
[1757468036042,2.09985427,111180.0,111170.0,53.93497857]
[1757468036413,1.94905427,111180.0,111170.0,53.93497857]
[1757468036617,2.09985427,111180.0,111170.0,53.93497857]
[1757468037631,2.04985427,111180.0,111170.0,53.93497857]
[1757468037849,2.09985427,111180.0,111170.0,53.93497857]
[1757468038010,7.41100727,111180.0,111170.0,53.93497857]
[1757468038624,7.44327256,111180.0,111170.0,53.93497857]
[1757468038798,6.63347256,111180.0,111170.0,53.93497857]
[1757468038927,6.37437256,111180.0,111170.0,53.93497857]
[1757468039345,6.37437256,111180.0,111170.0,53.93397857]
[1757468039752,6.37537256,111180.0,111170.0,53.93497857]
[1757468040327,6.36587256,111180.0,111170.0,53.93397857]
[1757468040748,6.81317256,111180.0,111170.0,53.93497857]
[1757468041540,6.81117256,111180.0,111170.0,53.93497857]
[1757468042367,6.81617256,111180.0,111170.0,53.93497857]
[1757468042668,4.73131256,111180.0,111170.0,53.93497857]
[1757468042904,2.55240207,111180.0,111170.0,53.93794857]
[1757468043154,2.57903718,111180.0,111170.0,53.93794857]
[1757468043888,2.57903718,111180.0,111170.0,53.93497857]
[1757468044130,2.71907018,111180.0,111170.0,53.93497857]
[1757468044824,7.76907018,111180.0,111170.0,53.93497857]
[1757468045988,2.64466507,111180.0,111170.0,53.93497857]
[1757468046235,2.40160207,111180.0,111170.0,53.93794857]
[1757468046441,2.57903718,111180.0,111170.0,53.93794857]
[1757468047647,2.57903718,111180.0,111170.0,53.93497857]
[1757468048059,3.07903718,111180.0,111170.0,53.93497857]
[1757468048497,3.21590018,111180.0,111170.0,53.93497857]
[1757468049086,8.26907018,111180.0,111170.0,53.93497857]
[1757468050019,7.96927018,111180.0,111170.0,53.93497857]
[1757468050406,8.61002122,111180.0,111170.0,53.93497857]
[1757468050582,3.3617812,111180.0,111170.0,53.93794857]
[1757468050795,3.5148312,111180.0,111170.0,53.93794857]
[1757468051457,3.56670089,111180.0,111170.0,53.93794857]
[1757468051912,3.35621578,111180.0,111170.0,54.05124857]
[1757468052120,3.38510089,111180.0,111170.0,54.05124857]
[1757468053138,3.39427786,111180.0,111170.0,54.05124857]
[1757468053684,3.39427786,111180.0,111170.0,53.93794857]
[1757468053887,3.91994788,111180.0,111170.0,53.93794857]
[1757468055179,3.91994788,111180.0,111170.0,53.93497857]
[1757468055398,3.91994788,111180.0,111170.0,53.93801857]
[1757468055831,3.36539275,111180.0,111170.0,53.93801857]
[1757468056261,3.39427786,111180.0,111170.0,53.93801857]
[1757468056680,3.34427786,111180.0,111170.0,53.93801857]
[1757468056934,3.39427786,111180.0,111170.0,53.93801857]
[1757468057140,3.91994788,111180.0,111170.0,53.93801857]
[1757468057627,3.91994788,111180.0,111170.0,53.93497857]
[1757468057803,3.92307788,111180.0,111170.0,53.93497857]
[1757468058234,4.02864788,111180.0,111170.0,53.93497857]
[1757468058656,3.97864788,111180.0,111170.0,53.93497857]
[1757468058891,4.02864788,111180.0,111170.0,53.93497857]
[1757468060187,3.97864788,111180.0,111170.0,53.93497857]
[1757468060391,4.02864788,111180.0,111170.0,53.93497857]
[1757468061003,4.06091317,111180.0,111170.0,53.93497857]
[1757468061414,4.06121317,111180.0,111170.0,53.93497857]
[1757468061629,4.10969858,111180.0,111170.0,53.93801857]
[1757468061835,4.11282858,111180.0,111170.0,53.93497857]
[1757468062060,4.17808105,111180.0,111170.0,53.34119006]
[1757468065171,9.11908105,111180.0,111170.0,53.34119006]
[1757468065606,9.00101105,111180.0,111170.0,53.34119006]
[1757468065823,8.97307788,111180.0,111170.0,53.34119006]
[1757468066000,9.17307788,111180.0,111170.0,52.77218436]
[1757468066199,9.31908105,111180.0,111170.0,52.77218436]
[1757468066407,9.20101105,111180.0,111170.0,52.77218436]
[1757468066643,3.56539275,111180.0,111170.0,52.88852436]
[1757468067046,3.55128434,111180.0,111170.0,52.88852436]
[1757468067398,3.65168434,111180.0,111170.0,52.88852436]
[1757468067608,3.35128434,111180.0,111170.0,52.88852436]
[1757468067992,3.38016945,111180.0,111170.0,52.88852436]
[1757468068190,3.08365776,111180.0,111170.0,52.88852436]
[1757468068407,2.69445776,111180.0,111170.0,52.88852436]
[1757468068713,2.44915776,111180.0,111170.0,52.88852436]
[1757468068930,2.12313442,111180.0,111170.0,52.88852436]
[1757468069149,2.24688067,111180.0,111170.0,52.88852436]
[1757468069324,2.58688067,111180.0,111170.0,52.88852436]
[1757468069979,2.46120725,111180.0,111170.0,52.88852436]
[1757468070229,1.73197857,111180.0,111170.0,52.88852436]
[1757468070413,1.50358895,111180.0,111170.0,52.88852436]
[1757468070861,2.19870075,111180.0,111170.0,52.88852436]
[1757468071513,2.18952378,111180.0,111170.0,52.88852436]
[1757468072368,2.18452378,111180.0,111170.0,52.88852436]
[1757468072574,2.18252378,111180.0,111170.0,52.88752436]
[1757468072774,2.18752378,111180.0,111170.0,52.88852436]
[1757468072919,1.6862771,111180.0,111170.0,52.88852436]
[1757468073126,1.16238864,111180.0,111170.0,52.89682436]
[1757468073323,1.43590864,111180.0,111170.0,52.89582436]
[1757468073553,1.09690864,111180.0,111170.0,52.89682436]
[1757468073752,1.27313198,111180.0,111170.0,52.89882436]
[1757468074119,1.61313198,111180.0,111170.0,52.89882436]
[1757468074732,1.11313198,111180.0,111170.0,52.89882436]
[1757468074944,1.28835532,111180.0,111170.0,52.89882436]
[1757468075170,1.29755219,111180.0,111170.0,52.89882436]
[1757468075402,1.29755219,111180.0,111170.0,53.27370931]
[1757468075403,0.24391599,111180.0,111170.0,53.27370931]
[1757468075635,0.1528,111180.0,111170.0,53.27370931]
[1757468075849,0.1528,111180.0,111170.0,53.42450931]
[1757468076064,0.1528,111180.0,111170.0,53.24928597]
[1757468076273,0.1528,111180.0,111170.0,53.40475235]
[1757468076925,0.1518,111180.0,111170.0,53.40275235]
[1757468077132,0.1518,111180.0,111170.0,53.40575235]
[1757468077544,0.003,111180.0,111170.0,53.58197569]
[1757468077749,0.003,111180.0,111170.0,53.67389168]
[1757468078102,0.4,111200.0,111190.0,0.18817229]
[1757468078342,0.55076,111200.0,111190.0,0.63259563]
[1757468078548,0.15076,111200.0,111190.0,0.63259563]
[1757468079431,0.15076,111200.0,111190.0,0.63459563]
[1757468079868,0.15176,111200.0,111190.0,0.63759563]
[1757468080284,0.15176,111200.0,111190.0,0.59904041]
[1757468080911,0.15176,111200.0,111190.0,0.46237229]
[1757468082134,0.15176,111200.0,111190.0,0.31161229]
[1757468082395,0.15176,111200.0,111190.0,0.46245229]
[1757468084265,0.15176,111200.0,111190.0,0.31161229]
[1757468085438,0.15176,111200.0,111190.0,0.46245229]
[1757468085776,0.28842812,111200.0,111190.0,0.13174]
[1757468086225,0.28842812,111200.0,111190.0,0.31161229]
[1757468086422,0.28842812,111200.0,111190.0,0.13174]
[1757468086652,0.28842812,111200.0,111190.0,0.31161229]
[1757468087742,0.15176,111200.0,111190.0,0.31161229]
[1757468087930,0.46569562,111210.0,111200.0,0.18815611]
[1757468088102,0.31485562,111210.0,111200.0,0.45329423]
[1757468088444,0.4192,111220.0,111210.0,0.18813994]
[1757468088652,0.66195599,111220.0,111210.0,0.19021994]
[1757468088882,0.67086756,111220.0,111210.0,0.31660994]
[1757468089561,0.80753568,111220.0,111210.0,0.31660994]
[1757468089753,0.80758214,111220.0,111210.0,0.31660994]
[1757468089910,1.14758214,111220.0,111210.0,0.31660994]
[1757468090120,1.01091402,111220.0,111210.0,0.13677]
[1757468090331,1.01091402,111220.0,111210.0,0.13777]
[1757468091670,1.01091402,111220.0,111210.0,0.31760994]
[1757468091873,1.13867057,111220.0,111210.0,0.31760994]
[1757468092082,1.14766607,111220.0,111210.0,0.31760994]
[1757468092285,1.01099795,111220.0,111210.0,0.31760994]
[1757468092421,1.00200245,111220.0,111210.0,0.31760994]
[1757468092619,0.40924646,111220.0,111210.0,0.31760994]
[1757468092826,4.646e-05,111220.0,111210.0,0.45427806]
[1757468093042,0.15088646,111220.0,111210.0,0.45427806]
[1757468093242,0.15088646,111220.0,111210.0,0.31760994]
[1757468093875,0.15088646,111220.0,111210.0,0.31660994]
[1757468094076,0.15188646,111220.0,111210.0,0.32060994]
[1757468095116,0.00104646,111220.0,111210.0,0.41252593]
[1757468095315,0.15384646,111220.0,111210.0,0.41352593]
[1757468095523,0.15384646,111220.0,111210.0,0.32160994]
[1757468096730,0.00104646,111220.0,111210.0,0.530554]
[1757468097146,0.00204646,111220.0,111210.0,0.533554]
[1757468099094,0.00204646,111220.0,111210.0,0.685114]
[1757468099823,0.00204646,111220.0,111210.0,0.685074]
[1757468099989,0.00204646,111220.0,111210.0,0.77698999]
[1757468100397,0.00204646,111220.0,111210.0,0.68362446]
[1757468100805,0.00204646,111220.0,111210.0,0.72396305]
[1757468101211,0.00204646,111220.0,111210.0,0.29525]
[1757468101418,0.11862499,111220.0,111210.0,0.47508994]
[1757468102157,0.00204646,111220.0,111210.0,0.47508994]
[1757468102280,0.00204646,111220.0,111210.0,0.20045994]
[1757468102503,0.59185352,111220.0,111210.0,0.0153]
[1757468102700,1.20359328,111220.0,111210.0,0.0153]
[1757468102902,1.20359328,111220.0,111210.0,0.01738]
[1757468102903,1.17064951,111220.0,111210.0,0.01738]
[1757468103330,1.05407098,111220.0,111210.0,0.01738]
[1757468103737,0.93749245,111220.0,111210.0,0.01738]
[1757468104000,0.84561646,111220.0,111210.0,0.19721994]
[1757468104214,0.84356646,111220.0,111210.0,0.22935698]
[1757468104663,0.69356646,111220.0,111210.0,0.20045994]
[1757468105095,0.15352646,111220.0,111210.0,0.32360994]
[1757468105526,0.00204646,111220.0,111210.0,0.47508994]
[1757468105737,0.00204646,111220.0,111210.0,0.68505359]
[1757468106985,0.00204646,111220.0,111210.0,0.84229724]
[1757468107189,0.00204646,111220.0,111210.0,0.93421323]
[1757468107391,0.00204646,111220.0,111210.0,0.98421323]
[1757468108421,0.00204646,111220.0,111210.0,0.98021323]
[1757468108640,0.00104646,111220.0,111210.0,0.98021323]
[1757468108853,0.52751822,111260.0,111250.0,0.18807528]
[1757468108854,0.45839822,111260.0,111250.0,0.18807528]
[1757468109061,0.45886299,111260.0,111250.0,0.5632956]
[1757468109270,0.45886299,111260.0,111250.0,0.50485195]
[1757468109522,0.45886299,111260.0,111250.0,0.35333195]
[1757468109750,0.45886299,111260.0,111250.0,0.31654528]
[1757468110189,0.27228343,111260.0,111250.0,0.31754528]
[1757468110400,0.06920248,111260.0,111250.0,0.13777]
[1757468110623,0.00886299,111260.0,111250.0,0.13777]
[1757468110830,0.00046477,111260.0,111250.0,0.31754528]